fUSD/lending_fUSD_20250609
["ID","MTS","AMOUNT","RATE_DAILY","PERIOD"]
[365086438,1749461438959,-1129.28351,0.00018002,2]
[365086440,1749461438969,-1129.28351,0.00018002,2]
[365086442,1749461438978,-1129.28351,0.00018002,2]
[365086444,1749461438988,-1129.28351,0.00018002,2]
[365086446,1749461438997,-186.252995,0.00018002,2]
[365086448,1749461439007,-55.73922965,0.00018002,2]
[365086450,1749461439020,-130.51376535,0.00018002,2]
[365086452,1749461439029,-186.252995,0.00018002,2]
[365086454,1749461439039,-186.252995,0.00018002,2]
[365086456,1749461439048,-151.0,0.00018002,2]
[365086458,1749461439057,-151.0,0.00018002,2]
[365086459,1749461439067,-1704.81136894,0.00018009,2]
[365086460,1749461439085,-889.05553759,0.00018009,2]
[365086461,1749461439096,-779.79811136,0.00018009,2]
[365086462,1749461439114,-904.78563712,0.00018009,2]
[365086474,1749461440836,-186.252995,0.00018009,2]
[365086475,1749461440846,-186.252995,0.00018009,2]
[365086476,1749461440855,-229.30975937,0.00018009,2]
[365086477,1749461440865,-151.0,0.00018009,2]
[365086478,1749461440874,-158.55243697,0.00018009,2]
[365086479,1749461440884,-151.0,0.00018009,2]
[365086480,1749461440893,-1129.28351,0.00018014,2]
[365086481,1749461440903,-1129.28351,0.00018014,2]
[365086482,1749461440913,-150.0,0.00018026,2]
[365086483,1749461440923,-150.0,0.00018026,2]
[365086484,1749461440933,-150.0,0.00018026,2]
[365086485,1749461440942,-156.3393741,0.00018026,2]
[365086486,1749461440951,-387.52498342,0.00018031,2]
[365086487,1749461440959,-645.67714936,0.00018034,2]
[365086488,1749461440969,-200.45614188,0.00018043,2]
[365086489,1749461440980,-151.0,0.00018044,2]
[365086490,1749461440989,-204.58387133,0.00018054,2]
[365086491,1749461440999,-208.21495386,0.00018054,2]
[365086492,1749461441008,-200.0,0.00018054,2]
[365086493,1749461441018,-151.0,0.0001807,2]
[365086494,1749461441027,-200.0,0.00018079,2]
[365086495,1749461441037,-191.0,0.00018084,2]
[365086496,1749461441046,-674.0,0.00018084,2]
[365086497,1749461441055,-188.0,0.00018086,2]
[365086498,1749461441064,-165.0,0.00018095,2]
[365086499,1749461441074,-163.3,0.000181,2]
[365086500,1749461441083,-298.591651,0.000181,2]
[365086501,1749461441094,-150.32,0.000181,2]
[365086502,1749461441103,-301.1,0.000181,2]
[365086503,1749461441113,-186.252995,0.000181,2]
[365086504,1749461441122,-186.252995,0.000181,2]
[365086505,1749461441132,-163.3,0.000181,2]
[365086506,1749461441141,-150.67,0.000181,2]
[365086507,1749461441151,-163.3,0.000181,2]
[365086508,1749461441161,-1129.28351,0.00018109,2]
[365086509,1749461441170,-1129.28351,0.00018109,2]
[365086510,1749461441180,-200.45614188,0.00018114,2]
[365086511,1749461441190,-387.52498342,0.00018162,2]
[365086512,1749461441200,-200.0,0.0001818,2]
[365086513,1749461441209,-200.45614188,0.00018186,2]
[365086514,1749461441218,-2129.78,0.00018187,2]
[365086515,1749461441226,-4886.09533607,0.00018197,2]
[365086527,1749461443461,-27143.54693356,0.00018197,2]
[365086528,1749461443472,-3487.243837,0.00018197,2]
[365086529,1749461443627,-15127.94788941,0.00018197,2]
[365086536,1749461446387,-151.0,0.00018197,2]
[365086537,1749461446397,-186.252995,0.00018197,2]
[365086538,1749461446407,-34.34264747,0.00018197,2]
[365086539,1749461446443,-151.91034753,0.00018197,2]
[365086540,1749461446452,-151.0,0.00018197,2]
[365086541,1749461446462,-151.0,0.00018197,2]
[365086542,1749461446471,-151.34,0.000182,2]
[365086543,1749461446481,-200.45614188,0.00018257,2]
[365086544,1749461446490,-200.0,0.0001826,2]
[365086545,1749461446501,-387.52498342,0.00018293,2]
[365086546,1749461446510,-180.65,0.000183,2]
[365086547,1749461446519,-168.02036944,0.00018322,2]
[365086548,1749461446530,-10351.34741492,0.00018325,2]
[365086549,1749461446539,-186.252995,0.00018325,2]
[365086550,1749461446549,-186.252995,0.00018325,2]
[365086551,1749461446559,-200.45614188,0.00018329,2]
[365086552,1749461446568,-232.0,0.00018334,2]
[365086553,1749461446577,-1129.28352,0.00018356,2]
[365086554,1749461446587,-5451.87,0.00018356,2]
[365086555,1749461446596,-378.52,0.00018356,2]
[365086556,1749461446605,-200.0,0.00018362,2]
[365086557,1749461446615,-208.59039597,0.0001837,2]
[365086558,1749461446624,-52529.63692902,0.00018385,2]
[365086559,1749461446633,-186.252995,0.00018385,2]
[365086560,1749461446642,-186.253,0.00018385,2]
[365086561,1749461446651,-200.45614188,0.000184,2]
[365086562,1749461446662,-1401.17962511,0.00018407,2]
[365086563,1749461446672,-4084.0,0.00018411,2]
[365086564,1749461446681,-6620.0,0.00018411,2]
[365086565,1749461446691,-1164.0,0.00018411,2]
[365086566,1749461446700,-948.151,0.00018411,2]
[365086567,1749461446710,-155.0,0.00018411,2]
[365086568,1749461446719,-387.52498342,0.00018424,2]
[365086569,1749461446728,-200.0,0.00018442,2]
[365086570,1749461446738,-200.45614188,0.00018471,2]
[365086571,1749461446747,-19049.9554666,0.00018507,2]
[365086572,1749461446756,-2964.8480322,0.00018507,2]
[365086573,1749461446766,-1178.626,0.00018507,2]
[365086574,1749461446775,-300.0,0.00018519,2]
[365086575,1749461446784,-15156.2224999,0.0001852,2]
[365086577,1749461446794,-10642.0317894,0.0001852,2]
[365086579,1749461446803,-4686.8704104,0.0001852,2]
[365086581,1749461446813,-795.68520431,0.00018521,2]
[365086583,1749461446822,-1002.12636834,0.00018521,2]
[365086585,1749461446831,-12543.9924666,0.00018533,2]
[365086586,1749461446841,-270.0,0.00018536,2]
[365086587,1749461446850,-200.45614188,0.00018543,2]
[365086588,1749461446860,-200.0,0.00018545,2]
[365086589,1749461446870,-387.52498342,0.00018554,2]
[365086590,1749461446880,-52529.63692902,0.00018573,2]
[365086591,1749461446890,-200.45614188,0.00018614,2]
[365086592,1749461446900,-200.0,0.00018627,2]
[365086593,1749461446909,-1159.0,0.00018649,2]
[365086594,1749461446920,-387.52498342,0.00018685,2]
[365086595,1749461446929,-200.45614188,0.00018686,2]
[365086596,1749461446940,-700.0,0.000187,6]
[365086597,1749461446949,-341.0,0.00018711,2]
[365086600,1749461446959,-200.0,0.00018731,2]
[365086603,1749461446968,-176.912,0.0001874,2]
[365086605,1749461446977,-2303.80134834,0.00018756,2]
[365086607,1749461446986,-200.45614188,0.00018757,2]
[365086609,1749461446995,-52529.63692902,0.00018761,2]
[365086611,1749461447004,-207.0,0.0001879,2]
[365086613,1749461447014,-935.0,0.00018796,2]
[365086614,1749461447024,-1400.0,0.000188,6]
[365086615,1749461447034,-387.52498342,0.00018816,2]
[365086616,1749461447043,-200.45614188,0.00018829,2]
[365086617,1749461447053,-2803.6439511,0.00018854,2]
[365086618,1749461447064,-1114.542,0.00018854,2]
[365086619,1749461447074,-8645.7140034,0.00018856,2]
[365086620,1749461447083,-3807.66962,0.00018856,2]
[365086621,1749461447092,-15467.7629333,0.00018856,2]
[365086622,1749461447101,-500.0,0.00018882,2]
[365086623,1749461447110,-529.0,0.00018882,2]
[365086624,1749461447119,-14510.4074999,0.00018891,2]
[365086625,1749461447128,-2200.0,0.000189,6]
[365086626,1749461447137,-160.66128485,0.000189,2]
[365086627,1749461447147,-200.45614188,0.000189,2]
[365086628,1749461447156,-152.0,0.00018901,3]
[365086629,1749461447167,-500.0,0.00018904,2]
[365086630,1749461447176,-2303.80134832,0.00018917,2]
[365086631,1749461447185,-12664.1085999,0.00018936,2]
[365086632,1749461447194,-253.53,0.00018938,2]
[365086633,1749461447203,-387.52498342,0.00018947,2]
[365086634,1749461447216,-52529.63692902,0.00018948,2]
[365086635,1749461447224,-200.45614188,0.00018971,2]
[365086636,1749461447233,-207.0,0.0001899,2]
[365086637,1749461447242,-204.5600707,0.00019,2]
[365086638,1749461447251,-300.0,0.00019,3]
[365086639,1749461447263,-6473.84684498,0.00019,2]
[365086640,1749461447272,-235.99570944,0.00019039,2]
[365086641,1749461447281,-453.53615675,0.00019042,2]
[365086642,1749461447290,-200.45614188,0.00019043,2]
[365086643,1749461447299,-387.52498342,0.00019078,2]
[365086644,1749461447309,-2303.80134832,0.00019078,2]
[365086645,1749461447319,-150.0,0.000191,2]
[365086646,1749461447328,-179.0,0.000191,2]
[365086647,1749461447338,-200.45614188,0.00019114,2]
[365086648,1749461447347,-1000.0,0.00019122,2]
[365086649,1749461447356,-6649.3962174,0.00019126,2]
[365086650,1749461447365,-2928.4688295,0.00019126,2]
[365086651,1749461447374,-11885.5703999,0.00019126,2]
[365086652,1749461447383,-2642.43987,0.00019126,2]
[365086653,1749461447393,-1050.458,0.00019126,2]
[365086654,1749461447402,-253.53,0.00019126,2]
[365086655,1749461447411,-253.53,0.00019129,2]
[365086656,1749461447422,-52529.63692902,0.00019136,2]
[365086657,1749461447431,-13864.5925,0.00019139,2]
[365086658,1749461447440,-12784.2247333,0.00019139,2]
[365086659,1749461447450,-253.53,0.00019142,2]
[365086660,1749461447459,-53227.12459617,0.00019152,2]
[365086661,1749461447472,-2200.0,0.00019152,2]
[365086662,1749461447483,-4657.00974678,0.00019152,2]
[365086663,1749461447521,-242.70895161,0.00019152,2]
[365086664,1749461447544,-3338.09010292,0.00019152,2]
[365086665,1749461447560,-659.65911097,0.00019152,2]
[365086668,1749461514842,-153.93770231,0.0001746,2]
[365086669,1749461517809,-197.73229769,0.0001746,2]
[365086670,1749461586935,1000.0,0.0001178,2]
[365086671,1749461588505,1000.0,0.0001315,2]
[365086672,1749461590112,1000.0,0.0001452,2]
[365086673,1749461591669,1000.0,0.0001589,2]
[365086674,1749461626065,151.0,0.00016894,2]
[365086676,1749461642774,285.74,0.00013699,2]
[365086677,1749461643904,151.0,0.00016864,2]
[365086678,1749461682970,150.0,0.00017052,5]
[365086684,1749461858028,1966.7558513,0.00017,10]
[365086688,1749461948949,870.89,0.00016063,2]
[365086691,1749462066631,1000.0,0.00017052,10]
[365086694,1749462130187,-151.0,0.00017221,2]
[365086695,1749462132107,-49.0,0.00017221,2]
[365086696,1749462132131,-250.0,0.0001734,2]
[365086697,1749462132155,-63.50994601,0.0001746,2]
[365086698,1749462134723,231.17639707,0.00017052,10]
[365086699,1749462134746,104607.71760793,0.00017052,10]
[365086702,1749462145975,-148.64005399,0.0001746,2]
[365086703,1749462146002,-63.53073024,0.00017707,2]
[365086704,1749462147753,-113.29831391,0.00017707,2]
[365086705,1749462147777,-200.0,0.00017792,2]
[365086706,1749462147806,-79.85193398,0.00017798,2]
[365086707,1749462150601,-127.54806602,0.00017798,2]
[365086708,1749462150627,-41.79139663,0.00017807,2]
[365086709,1749462152768,-167.73490534,0.00017807,2]
[365086710,1749462154968,-228.05465388,0.00017807,2]
[365086719,1749462400124,-269.84605051,0.0001712,30]
[365086720,1749462416239,-167.73490534,0.0001712,30]
[365086723,1749462430052,-207.4,0.0001712,30]
[365086724,1749462446096,-200.0,0.0001712,30]
[365086725,1749462460280,-176.82904415,0.0001712,30]
[365086726,1749462476357,-289.10098059,0.0001712,30]
[365086727,1749462490830,-46.68696014,0.0001712,30]
[365086730,1749462522369,-250.0,0.00017635,2]
[365086731,1749462522393,-1000.0,0.00017775,2]
[365086732,1749462522419,-207.4,0.00017798,2]
[365086733,1749462522443,-1200.0,0.00017807,2]
[365086734,1749462522467,-300.0,0.00017807,2]
[365086735,1749462522490,-250.0,0.00017808,2]
[365086736,1749462522514,-16749.24622028,0.00017808,2]
[365086782,1749462631746,-200.0,0.00017724,2]
[365086784,1749462631757,-150.0,0.00017724,7]
[365086786,1749462631767,-52.57382848,0.00017724,2]
[365086794,1749462631842,-197.42617152,0.00017724,2]
[365086795,1749462631852,-176.82904415,0.000178,2]
[365086796,1749462631863,-300.0,0.00017807,2]
[365086797,1749462631873,-1067.43754518,0.00017807,2]
[365086798,1749462631952,-132.56245482,0.00017807,2]
[365086799,1749462631962,-305.05012915,0.00017808,2]
[365086800,1749462631996,-686.35471434,0.00017808,2]
[365086807,1749462637662,-2825.6909516,0.00017808,2]
[365086808,1749462637779,-5589.97771579,0.00017808,2]
[365086809,1749462637832,-6279.30026884,0.00017808,2]
[365086810,1749462637842,-1493.63103871,0.000179,2]
[365086811,1749462637851,-176.82904414,0.00017927,2]
[365086812,1749462637863,-1493.63103854,0.00017969,2]
[365086813,1749462637872,-1493.63103854,0.00018038,2]
[365086814,1749462637882,-168.61,0.00018044,2]
[365086815,1749462637891,-23900.0,0.00018044,2]
[365086816,1749462637901,-176.82904414,0.00018053,2]
[365086817,1749462637911,-1493.63103854,0.00018107,2]
[365086818,1749462637920,-500.0,0.00018121,2]
[365086819,1749462637929,-500.0,0.00018121,2]
[365086820,1749462637939,-500.0,0.00018121,2]
[365086821,1749462637949,-205.79730666,0.00018121,2]
[365086822,1749462637958,-500.0,0.00018121,2]
[365086823,1749462637969,-250.0,0.00018121,2]
[365086824,1749462637980,-500.0,0.00018121,2]
[365086825,1749462637990,-500.0,0.00018121,2]
[365086826,1749462638000,-500.0,0.00018121,2]
[365086827,1749462638011,-500.0,0.00018121,2]
[365086828,1749462638021,-486.20724978,0.00018121,2]
[365086829,1749462638031,-595.04009576,0.00018121,2]
[365086830,1749462638040,-500.0,0.00018121,2]
[365086831,1749462638050,-500.0,0.00018121,2]
[365086832,1749462638059,-26376.7821,0.00018122,2]
[365086834,1749462638068,-15054.93407817,0.00018126,2]
[365086836,1749462638077,-2032.01,0.00018158,2]
[365086838,1749462638087,-168.0,0.00018164,2]
[365086840,1749462638096,-1493.63103854,0.00018176,2]
[365086842,1749462638106,-151.0,0.00018211,2]
[365086844,1749462638115,-151.0,0.00018211,2]
[365086846,1749462638125,-1000.0,0.00018211,2]
[365086848,1749462638134,-500.0,0.00018211,2]
[365086850,1749462638144,-500.0,0.00018211,2]
[365086852,1749462638153,-500.0,0.00018211,2]
[365086853,1749462638164,-500.0,0.00018211,2]
[365086855,1749462638173,-500.0,0.00018211,2]
[365086858,1749462638183,-500.0,0.00018211,2]
[365086859,1749462638192,-500.0,0.00018211,2]
[365086861,1749462638201,-192.35168393,0.00018211,2]
[365086863,1749462638211,-534.08,0.00018212,2]
[365086865,1749462638220,-500.0,0.00018221,2]
[365086867,1749462638230,-193.31887574,0.00018221,2]
[365086869,1749462638239,-285.60277469,0.00018221,2]
[365086871,1749462638248,-500.0,0.00018221,2]
[365086873,1749462638258,-505.51870716,0.00018221,2]
[365086875,1749462638267,-368.87557661,0.00018221,2]
[365086877,1749462638276,-408.28382454,0.00018221,2]
[365086880,1749462638286,-525.20391344,0.00018221,2]
[365086883,1749462638294,-500.0,0.00018221,2]
[365086885,1749462638304,-500.0,0.00018221,2]
[365086888,1749462638313,-500.0,0.00018221,2]
[365086890,1749462638322,-500.0,0.00018221,2]
[365086892,1749462638332,-257.71447615,0.00018221,2]
[365086894,1749462638341,-116619.68216176,0.00018222,2]
[365086896,1749462638350,-2839.54,0.00018226,2]
[365086898,1749462638359,-1493.63103854,0.00018245,2]
[365086900,1749462638369,-15054.93407809,0.00018266,2]
[365086902,1749462638379,-168.0,0.00018296,2]
[365086904,1749462638388,-1493.63103854,0.00018314,2]
[365086906,1749462638398,-870.89,0.00018327,2]
[365086907,1749462638407,-534.08,0.00018373,2]
[365086909,1749462638416,-1493.63103854,0.00018383,2]
[365086911,1749462638425,-207.0,0.00018392,2]
[365086913,1749462638435,-15054.93407809,0.00018406,2]
[365086915,1749462638444,-1493.63103854,0.00018452,2]
[365086917,1749462638453,-700.0,0.000185,6]
[365086919,1749462638464,-1493.63103854,0.00018521,2]
[365086921,1749462638473,-2500.0,0.00018526,2]
[365086923,1749462638482,-15054.93407809,0.00018546,2]
[365086925,1749462638492,-1493.63103854,0.0001859,2]
[365086927,1749462638501,-1400.0,0.000186,6]
[365086929,1749462638511,-1159.0,0.00018626,2]
[365086931,1749462638520,-4084.0,0.00018626,2]
[365086933,1749462638529,-928.909,0.00018626,2]
[365086935,1749462638539,-1000.0,0.0001863,2]
[365086937,1749462638548,-168.0,0.00018638,2]
[365086939,1749462638557,-168.0,0.00018638,2]
[365086941,1749462638566,-1493.63103854,0.00018659,2]
[365086943,1749462638576,-15054.93407809,0.00018686,2]
[365086945,1749462638585,-2100.0,0.000187,6]
[365086947,1749462638595,-7311.02572605,0.00018726,2]
[365086949,1749462638604,-1493.63103854,0.00018728,2]
[365086951,1749462638613,-2839.48,0.00018765,2]
[365086953,1749462638622,-1146.59332085,0.00018769,2]
[365086954,1749462638631,-1962.86784789,0.00018769,2]
[365086956,1749462638641,-1493.63103854,0.00018797,2]
[365086958,1749462638651,-2800.0,0.000188,6]
[365086961,1749462638661,-152.0,0.00018822,3]
[365086963,1749462638670,-15054.93407809,0.00018826,2]
[365086964,1749462638680,-250.0,0.00018832,2]
[365086966,1749462638691,-2839.48,0.00018851,2]
[365086968,1749462638700,-168.0,0.00018857,2]
[365086970,1749462638709,-2839.48,0.0001886,2]
[365086972,1749462638718,-534.08,0.0001886,2]
[365086974,1749462638729,-1493.63103854,0.00018866,2]
[365086976,1749462638739,-8518.44,0.0001887,2]
[365086978,1749462638748,-459.53447837,0.00018873,2]
[365086980,1749462638757,-2339.38736878,0.00018874,2]
[365086982,1749462638767,-459.53447832,0.00018896,2]
[365086984,1749462638776,-3500.0,0.000189,6]
[365086986,1749462638788,-150.0,0.00018908,2]
[365086988,1749462638797,-459.53447832,0.00018919,2]
[365086990,1749462638806,-1000.0,0.00018919,2]
[365086992,1749462638816,-150.0,0.00018929,2]
[365086994,1749462638825,-1493.63103854,0.00018934,2]
[365086996,1749462638835,-459.53447832,0.00018941,2]
[365086997,1749462638844,-168.0,0.00018946,2]
[365086999,1749462638854,-168.0,0.00018955,2]
[365087002,1749462638864,-459.53447832,0.00018964,2]
[365087003,1749462638874,-15054.93407809,0.00018966,2]
[365087005,1749462638883,-534.08,0.00018968,2]
[365087007,1749462638894,-33139.36711887,0.00018969,2]
[365087009,1749462638904,-271.8718,0.00018973,2]
[365087011,1749462638913,-4573.7376,0.00018978,2]
[365087013,1749462638924,-459.53447832,0.00018987,2]
[365087015,1749462638933,-152.19982905,0.00018998,2]
[365087017,1749462638942,-300.0,0.00019,120]
[365087019,1749462638952,-16000.0,0.00019,2]
[365087021,1749462638962,-250.0,0.00019,2]
[365087023,1749462638971,-150.0,0.00019001,2]
[365087025,1749462638980,-1493.63103854,0.00019003,2]
[365087027,1749462638990,-459.53447832,0.0001901,2]
[365087029,1749462638999,-459.53447832,0.00019032,2]
[365087031,1749462639008,-534.08,0.00019045,2]
[365087033,1749462639017,-1000.0,0.00019046,2]
[365087035,1749462639027,-150.0,0.0001905,2]
[365087037,1749462639036,-500.0,0.00019051,2]
[365087039,1749462639047,-1000.0,0.00019051,2]
[365087041,1749462639056,-1000.0,0.00019051,2]
[365087043,1749462639065,-151.0,0.00019055,2]
[365087045,1749462639075,-152.022432,0.00019055,2]
[365087047,1749462639084,-459.53447832,0.00019055,2]
[365087049,1749462639093,-2579.892,0.00019065,2]
[365087051,1749462639102,-3464.3202,0.00019065,2]
[365087053,1749462639112,-231.64646363,0.00019065,2]
[365087054,1749462639121,-974.05680206,0.00019065,2]
[365087056,1749462639131,-150.0,0.00019067,2]
[365087058,1749462639141,-150.0,0.00019067,2]
[365087060,1749462639150,-150.0,0.00019067,2]
[365087062,1749462639159,-150.30612478,0.00019067,2]
[365087064,1749462639168,-150.0,0.00019067,2]
[365087066,1749462639177,-151.14102347,0.00019067,2]
[365087068,1749462639187,-150.0,0.00019067,2]
[365087070,1749462639196,-150.0,0.00019067,2]
[365087072,1749462639206,-150.67763351,0.00019067,2]
[365087074,1749462639220,-152.89679129,0.00019067,2]
[365087076,1749462639229,-150.0,0.00019067,2]
[365087077,1749462639239,-150.0,0.00019067,2]
[365087079,1749462639249,-150.53917225,0.00019067,2]
[365087081,1749462639258,-500.0,0.00019067,2]
[365087083,1749462639268,-155.31043741,0.00019067,2]
[365087085,1749462639277,-160.49892128,0.00019067,2]
[365087087,1749462639287,-150.0,0.00019067,2]
[365087089,1749462639298,-150.0,0.00019067,2]
[365087091,1749462639309,-500.0,0.00019067,2]
[365087093,1749462639319,-500.0,0.00019067,2]
[365087096,1749462639330,-151.20009247,0.00019067,2]
[365087099,1749462639340,-150.0,0.00019067,2]
[365087102,1749462639350,-150.0,0.00019067,2]
[365087105,1749462639360,-150.62128316,0.00019067,2]
[365087107,1749462639370,-231.64646361,0.00019072,2]
[365087110,1749462639380,-1493.63103854,0.00019072,2]
[365087113,1749462639390,-500.0,0.00019078,2]
[365087115,1749462639404,-150.0,0.00019078,2]
[365087117,1749462639414,-152.19982905,0.00019078,2]
[365087119,1749462639425,-151.711958,0.00019078,2]
[365087121,1749462639437,-152.984224,0.00019078,2]
[365087123,1749462639448,-151.0,0.00019078,2]
[365087125,1749462639459,-151.0,0.00019078,2]
[365087127,1749462639479,-152.179777,0.00019078,2]
[365087129,1749462639490,-459.53447832,0.00019078,2]
[365087131,1749462639500,-160.42181423,0.00019078,2]
[365087133,1749462639511,-294.52069191,0.00019078,2]
[365087135,1749462639522,-247.446164,0.00019078,2]
[365087137,1749462639531,-151.0,0.00019078,2]
[365087139,1749462639541,-575.40339976,0.00019078,2]
[365087141,1749462639553,-151.0,0.00019078,2]
[365087143,1749462639563,-151.0,0.00019078,2]
[365087145,1749462639572,-152.354352,0.00019078,2]
[365087147,1749462639582,-231.64646361,0.00019078,2]
[365087149,1749462639592,-151.0,0.00019078,2]
[365087151,1749462639601,-156.015612,0.00019078,2]
[365087153,1749462639611,-153.420007,0.00019078,2]
[365087155,1749462639620,-153.055351,0.00019078,2]
[365087157,1749462639630,-18028.02880325,0.00019078,2]
[365087159,1749462639640,-154.206455,0.00019078,2]
[365087161,1749462639649,-375.9536333,0.00019078,3]
[365087163,1749462639658,-163.71518597,0.00019078,2]
[365087165,1749462639667,-171.27694471,0.00019078,2]
[365087167,1749462639677,-150.0,0.00019094,2]
[365087169,1749462639687,-150.0,0.00019094,2]
[365087171,1749462639696,-150.0,0.00019094,2]
[365087173,1749462639706,-150.0,0.00019094,2]
[365087175,1749462639720,-150.0,0.00019094,2]
[365087177,1749462639729,-150.0,0.00019094,2]
[365087179,1749462639738,-150.0,0.00019094,2]
[365087181,1749462639750,-150.0,0.00019094,2]
[365087200,1749462639759,-500.0,0.00019094,2]
[365087203,1749462639942,-150.0,0.00019094,2]
[365087205,1749462639951,-520.47433343,0.00019094,2]
[365087207,1749462639960,-500.0,0.00019094,2]
[365087209,1749462639972,-150.0,0.00019094,2]
[365087211,1749462639982,-150.0,0.00019094,2]
[365087213,1749462639991,-150.0,0.000191,2]
[365087215,1749462640000,-502.58434312,0.00019105,2]
[365087217,1749462640009,-150.0,0.00019105,2]
[365087219,1749462640018,-150.0,0.00019122,2]
[365087221,1749462640028,-200.0,0.00019122,2]
[365087223,1749462640037,-202.83517392,0.00019122,2]
[365087225,1749462640047,-150.0,0.00019122,2]
[365087227,1749462640056,-150.0,0.00019122,2]
[365087229,1749462640066,-150.0,0.00019122,2]
[365087231,1749462640075,-200.0,0.00019122,2]
[365087233,1749462640085,-205.8220498,0.00019122,2]
[365087235,1749462640094,-500.0,0.00019122,2]
[365087237,1749462640103,-150.0,0.00019122,2]
[365087238,1749462640113,-500.0,0.00019122,2]
[365087241,1749462640123,-150.0,0.00019122,2]
[365087242,1749462640133,-201.91697601,0.00019122,2]
[365087243,1749462640142,-156.653712,0.00019127,2]
[365087244,1749462640151,-156.259175,0.00019127,2]
[365087245,1749462640161,-151.0,0.00019127,2]
[365087246,1749462640170,-168.873795,0.00019127,2]
[365087247,1749462640180,-151.0,0.00019127,2]
[365087248,1749462640189,-151.0,0.00019127,2]
[365087249,1749462640199,-151.0,0.00019127,2]
[365087250,1749462640209,-151.0,0.00019127,2]
[365087251,1749462640222,-259.58237998,0.00019127,2]
[365087252,1749462640232,-152.235191,0.00019127,2]
[365087254,1749462640243,-151.0,0.00019127,2]
[365087256,1749462640252,-151.0,0.00019127,2]
[365087258,1749462640262,-202.60353145,0.00019133,2]
[365087260,1749462640271,-151.8649385,0.00019133,2]
[365087262,1749462640281,-1493.63103854,0.00019141,2]
[365087264,1749462640290,-150.0,0.00019149,2]
[365087266,1749462640300,-200.0,0.00019149,2]
[365087268,1749462640310,-150.0,0.00019149,2]
[365087270,1749462640320,-150.0,0.00019149,2]
[365087272,1749462640329,-500.0,0.00019149,2]
[365087274,1749462640339,-203.96890393,0.00019149,2]
[365087276,1749462640349,-500.0,0.00019149,2]
[365087278,1749462640358,-202.43966634,0.00019149,2]
[365087280,1749462640368,-159.67928348,0.0001915,2]
[365087282,1749462640377,-21438.8656896,0.00019151,2]
[365087284,1749462640387,-899.4822794,0.00019151,2]
[365087286,1749462640397,-318.1106667,0.00019151,2]
[365087288,1749462640406,-151.0,0.00019151,2]
[365087290,1749462640416,-282.047499,0.00019151,2]
[365087292,1749462640425,-255.641015,0.00019151,2]
[365087294,1749462640435,-151.0,0.00019151,2]
[365087296,1749462640444,-179.233912,0.00019151,2]
[365087298,1749462640454,-6934.519304,0.00019151,2]
[365087300,1749462640466,-151.0,0.00019151,2]
[365087302,1749462640475,-151.0,0.00019151,2]
[365087304,1749462640484,-220.810861,0.00019151,2]
[365087306,1749462640493,-151.0,0.00019151,2]
[365087308,1749462640503,-151.0,0.00019151,2]
[365087310,1749462640512,-51816.0,0.00019151,2]
[365087312,1749462640522,-152.87149,0.00019151,2]
[365087314,1749462640531,-59242.8064999,0.00019151,2]
[365087316,1749462640540,-154.104115,0.00019151,2]
[365087318,1749462640549,-59242.8064999,0.00019151,2]
[365087320,1749462640559,-151.0,0.00019151,2]
[365087322,1749462640568,-6931.9459607,0.00019151,2]
[365087324,1749462640576,-151.0,0.00019152,2]
[365087326,1749462640586,-754.3117202,0.00019152,2]
[365087328,1749462640595,-151.0,0.00019152,2]
[365087330,1749462640604,-374.47824792,0.00019152,2]
[365087332,1749462640613,-174.97986028,0.00019152,2]
[365087334,1749462640623,-267.36687066,0.00019154,5]